lending/lending_fUSD_20240507
["ID","MTS","AMOUNT","RATE_DAILY","PERIOD"]
[326551590,1715105570295,-500.0,0.0002,2]
[326551591,1715105570313,-500.0,0.0002,2]
[326551592,1715105570326,-696.64,0.0002,2]
[326551593,1715105570347,-500.0,0.0002,2]
[326551594,1715105570360,-500.0,0.0002,2]
[326551595,1715105570380,-749.43,0.0002,2]
[326551596,1715105570390,-500.0,0.0002,2]
[326551597,1715105570400,-992.5,0.0002,2]
[326551598,1715105570411,-500.0,0.0002,2]
[326551599,1715105570422,-500.0,0.0002,2]
[326551600,1715105570433,-500.0,0.0002,2]
[326551601,1715105570450,-500.0,0.0002,2]
[326551602,1715105570463,-500.0,0.0002,2]
[326551603,1715105570474,-500.0,0.0002,2]
[326551604,1715105570512,-500.0,0.0002,2]
[326551605,1715105570523,-608.86615113,0.0002,2]
[326551606,1715105570545,-1147.18,0.0002,2]
[326551607,1715105570556,-891.13,0.0002,2]
[326551608,1715105570569,-500.0,0.0002,2]
[326551609,1715105570580,-500.0,0.0002,2]
[326551610,1715105570591,-652.58,0.0002,2]
[326551611,1715105570605,-1542.46,0.0002,2]
[326551612,1715105570618,-714.55,0.0002,2]
[326551613,1715105570629,-590.41,0.0002,2]
[326551614,1715105570639,-500.0,0.0002,2]
[326551615,1715105570650,-957.15,0.0002,2]
[326551616,1715105570660,-500.0,0.0002,2]
[326551617,1715105570670,-500.0,0.0002,2]
[326551618,1715105570683,-500.0,0.0002,2]
[326551619,1715105570698,-500.0,0.0002,2]
[326551620,1715105570711,-909.47,0.0002,2]
[326551621,1715105570732,-500.0,0.0002,2]
[326551622,1715105570747,-619.98,0.0002,2]
[326551623,1715105570760,-600.34,0.0002,2]
[326551624,1715105570774,-500.0,0.0002,2]
[326551625,1715105570791,-512.88,0.0002,2]
[326551626,1715105570803,-500.0,0.0002,2]
[326551627,1715105570816,-500.0,0.0002,2]
[326551628,1715105570866,-500.0,0.0002,2]
[326551629,1715105570877,-500.0,0.0002,2]
[326551630,1715105570887,-502.72,0.0002,2]
[326551631,1715105570899,-500.0,0.0002,2]
[326551632,1715105570911,-500.0,0.0002,2]
[326551633,1715105570972,-608.4,0.0002,2]
[326551634,1715105570983,-775.54,0.0002,2]
[326551635,1715105570996,-744.29,0.0002,2]
[326551636,1715105571008,-635.25,0.0002,2]
[326551637,1715105571018,-500.0,0.0002,2]
[326551638,1715105571030,-1234.34,0.0002,2]
[326551639,1715105571042,-675.56,0.0002,2]
[326551640,1715105571053,-947.66,0.0002,2]
[326551641,1715105571074,-996.04,0.0002,2]
[326551642,1715105571085,-500.0,0.0002,2]
[326551643,1715105571107,-500.0,0.0002,2]
[326551644,1715105571120,-500.0,0.0002,2]
[326551645,1715105571137,-2194.28,0.0002,2]
[326551646,1715105571147,-500.0,0.0002,2]
[326551647,1715105571158,-500.0,0.0002,2]
[326551648,1715105571173,-500.0,0.0002,2]
[326551649,1715105571229,-603.04,0.0002,2]
[326551650,1715105571262,-1659.65,0.0002,2]
[326551651,1715105571276,-528.89541366,0.0002,2]
[326551652,1715105571286,-983.79,0.0002,2]
[326551653,1715105571305,-500.0,0.0002,2]
[326551654,1715105571326,-880.18,0.0002,2]
[326551655,1715105571346,-1117.76,0.0002,2]
[326551656,1715105571358,-500.0,0.0002,2]
[326551657,1715105571370,-617.76,0.0002,2]
[326551658,1715105571382,-500.0,0.0002,2]
[326551659,1715105571396,-1567.91,0.0002,2]
[326551660,1715105571409,-666.96,0.0002,2]
[326551661,1715105571419,-500.0,0.0002,2]
[326551662,1715105571432,-500.0,0.0002,2]
[326551663,1715105571444,-500.0,0.0002,2]
[326551664,1715105571457,-2152.69,0.0002,2]
[326551665,1715105571469,-500.0,0.0002,2]
[326551666,1715105571479,-500.0,0.0002,2]
[326551667,1715105571493,-896.53,0.0002,2]
[326551668,1715105571520,-604.85,0.0002,2]
[326551669,1715105571553,-500.0,0.0002,2]
[326551670,1715105571564,-500.0,0.0002,2]
[326551671,1715105571576,-1115.16,0.0002,2]
[326551672,1715105571586,-500.0,0.0002,2]
[326551673,1715105571596,-364.76004684,0.0002,2]
[326551674,1715105571631,-500.0,0.0002,2]
[326551675,1715105571642,-622.4,0.0002,2]
[326551676,1715105571653,-500.0,0.0002,2]
[326551677,1715105571665,-1145.35,0.0002,2]
[326551678,1715105571676,-2862.89,0.0002,2]
[326551679,1715105571692,-938.24,0.0002,2]
[326551680,1715105571712,-500.0,0.0002,2]
[326551681,1715105571740,-500.0,0.0002,2]
[326551682,1715105571756,-500.0,0.0002,2]
[326551683,1715105571773,-500.0,0.0002,2]
[326551684,1715105571783,-917.06,0.0002,2]
[326551685,1715105571793,-501.99,0.0002,2]
[326551686,1715105571805,-500.0,0.0002,2]
[326551687,1715105571828,-500.0,0.0002,2]
[326551688,1715105571851,-599.9,0.0002,2]
[326551689,1715105571862,-235.37245439,0.0002,2]
[326551690,1715105571901,-663.53,0.0002,2]
[326551691,1715105571912,-783.84,0.0002,2]
[326551692,1715105571922,-500.0,0.0002,2]
[326551693,1715105571957,-500.0,0.0002,2]
[326551694,1715105571969,-500.0,0.0002,2]
[326551695,1715105571980,-500.0,0.0002,2]
[326551696,1715105571993,-654.08,0.0002,2]
[326551697,1715105572003,-679.25,0.0002,2]
[326551698,1715105572021,-500.0,0.0002,2]
[326551699,1715105572034,-500.0,0.0002,2]
[326551700,1715105572060,-720.33,0.0002,2]
[326551701,1715105572080,-770.79,0.0002,2]
[326551702,1715105572095,-1458.07,0.0002,2]
[326551703,1715105572109,-729.57,0.0002,2]
[326551704,1715105572148,-1206.99,0.0002,2]
[326551705,1715105572165,-500.0,0.0002,2]
[326551706,1715105572177,-633.11,0.0002,2]
[326551707,1715105572200,-500.0,0.0002,2]
[326551708,1715105572211,-901.99,0.0002,2]
[326551709,1715105572222,-2291.75,0.0002,2]
[326551710,1715105572234,-500.0,0.0002,2]
[326551711,1715105572244,-786.7,0.0002,2]
[326551712,1715105572260,-874.1,0.0002,2]
[326551713,1715105572271,-500.0,0.0002,2]
[326551714,1715105572281,-1498.69,0.0002,2]
[326551715,1715105572292,-1025.17,0.0002,2]
[326551716,1715105572303,-500.0,0.0002,2]
[326551717,1715105572332,-500.0,0.0002,2]
[326551718,1715105572342,-500.0,0.0002,2]
[326551719,1715105572356,-1119.86,0.0002,2]
[326551720,1715105572371,-866.47,0.0002,2]
[326551721,1715105572385,-500.0,0.0002,2]
[326551722,1715105572396,-500.0,0.0002,2]
[326551723,1715105572423,-850.08,0.0002,2]
[326551724,1715105572433,-789.26,0.0002,2]
[326551725,1715105572443,-441.99329509,0.0002,2]
[326551726,1715105572455,-500.0,0.0002,2]
[326551727,1715105572476,-500.0,0.0002,2]
[326551728,1715105572486,-500.0,0.0002,2]
[326551729,1715105572510,-500.0,0.0002,2]
[326551730,1715105572531,-500.0,0.0002,2]
[326551731,1715105572543,-1246.83,0.0002,2]
[326551732,1715105572556,-602.95,0.0002,2]
[326551733,1715105572572,-578.54,0.0002,2]
[326551734,1715105572592,-628.97,0.0002,2]
[326551735,1715105572605,-500.0,0.0002,2]
[326551736,1715105572616,-500.0,0.0002,2]
[326551737,1715105572627,-500.0,0.0002,2]
[326551738,1715105572656,-857.63,0.0002,2]
[326551739,1715105572666,-500.0,0.0002,2]
[326551740,1715105572678,-1237.72,0.0002,2]
[326551741,1715105572692,-1373.85,0.0002,2]
[326551742,1715105572704,-1020.3,0.0002,2]
[326551743,1715105572717,-500.0,0.0002,2]
[326551744,1715105572729,-500.0,0.0002,2]
[326551745,1715105572740,-514.16,0.0002,2]
[326551746,1715105572750,-1646.07,0.0002,2]
[326551747,1715105572762,-2048.87,0.0002,2]
[326551748,1715105572774,-6014.47,0.0002,2]
[326551749,1715105572795,-500.0,0.0002,2]
[326551750,1715105572813,-539.47,0.0002,2]
[326551751,1715105572826,-1036.58,0.0002,2]
[326551752,1715105572835,-1252.57,0.0002,2]
[326551753,1715105572847,-500.0,0.0002,2]
[326551754,1715105572858,-665.98,0.0002,2]
[326551755,1715105572874,-500.0,0.0002,2]
[326551756,1715105572887,-1013.84,0.0002,2]
[326551757,1715105572907,-150.0,0.0002,2]
[326551758,1715105572917,-531.24,0.0002,2]
[326551759,1715105572958,-500.0,0.0002,2]
[326551760,1715105573000,-1038.38,0.0002,2]
[326551761,1715105573011,-11885.09,0.0002,2]
[326551762,1715105573023,-500.0,0.0002,2]
[326551763,1715105573063,-380.14631121,0.0002,2]
[326551764,1715105573073,-500.0,0.0002,2]
[326551765,1715105573084,-519.72,0.0002,2]
[326551766,1715105573093,-500.0,0.0002,2]
[326551767,1715105573104,-500.0,0.0002,2]
[326551768,1715105573114,-500.0,0.0002,2]
[326551769,1715105573145,-500.0,0.0002,2]
[326551770,1715105573156,-7456.46,0.0002,2]
[326551771,1715105573167,-500.0,0.0002,2]
[326551772,1715105573176,-500.0,0.0002,2]
[326551773,1715105573188,-8356.91,0.0002,2]
[326551774,1715105573203,-500.0,0.0002,2]
[326551775,1715105573219,-1305.53,0.0002,2]
[326551776,1715105573231,-785.17,0.0002,2]
[326551777,1715105573247,-500.0,0.0002,2]
[326551778,1715105573258,-338.18806082,0.0002,2]
[326551779,1715105573281,-958.49,0.0002,2]
[326551780,1715105573298,-762.88,0.0002,2]
[326551781,1715105573315,-2572.94,0.0002,2]
[326551782,1715105573325,-500.0,0.0002,2]
[326551783,1715105573341,-500.0,0.0002,2]
[326551784,1715105573356,-500.0,0.0002,2]
[326551785,1715105573367,-513.88,0.0002,2]
[326551786,1715105573378,-790.81,0.0002,2]
[326551787,1715105573388,-896.68,0.0002,2]
[326551788,1715105573400,-2589.73,0.0002,2]
[326551789,1715105573414,-544.84,0.0002,2]
[326551790,1715105573432,-500.0,0.0002,2]
[326551791,1715105573443,-500.0,0.0002,2]
[326551792,1715105573454,-500.0,0.0002,2]
[326551793,1715105573469,-368.44813766,0.0002,2]
[326551794,1715105573480,-1985.12,0.0002,2]
[326551795,1715105573491,-500.0,0.0002,2]
[326551796,1715105573517,-244.28760222,0.0002,2]
[326551797,1715105573534,-500.0,0.0002,2]
[326551798,1715105573573,-1258.11,0.0002,2]
[326551799,1715105573586,-1700.29,0.0002,2]
[326551800,1715105573604,-4651.14,0.0002,2]
[326551801,1715105573619,-500.0,0.0002,2]
[326551802,1715105573646,-500.0,0.0002,2]
[326551803,1715105573660,-500.0,0.0002,2]
[326551804,1715105573670,-500.0,0.0002,2]
[326551805,1715105573684,-676.07,0.0002,2]
[326551806,1715105573696,-959.08,0.0002,2]
[326551807,1715105573707,-734.9,0.0002,2]
[326551808,1715105573720,-500.0,0.0002,2]
[326551809,1715105573741,-500.0,0.0002,2]
[326551810,1715105573752,-698.7,0.0002,2]
[326551811,1715105573762,-663.69,0.0002,2]
[326551812,1715105573776,-660.1,0.0002,2]
[326551813,1715105573790,-735.96,0.0002,2]
[326551814,1715105573801,-8060.34,0.0002,2]
[326551815,1715105573812,-1109.96,0.0002,2]
[326551816,1715105573823,-2834.12,0.0002,2]
[326551817,1715105573846,-20091.28,0.0002,2]
[326551818,1715105573857,-14442.67,0.0002,2]
[326551819,1715105573866,-417.88601622,0.0002,2]
[326551820,1715105573876,-1349.78,0.0002,2]
[326551821,1715105573886,-1229.5,0.0002,2]
[326551822,1715105573908,-500.0,0.0002,2]
[326551823,1715105573923,-998.22,0.0002,2]
[326551824,1715105573937,-500.0,0.0002,2]
[326551825,1715105573960,-657.39,0.0002,2]
[326551826,1715105573978,-500.0,0.0002,2]
[326551827,1715105573992,-1555.88,0.0002,2]
[326551828,1715105574003,-500.0,0.0002,2]
[326551829,1715105574018,-500.0,0.0002,2]
[326551830,1715105574029,-500.0,0.0002,2]
[326551831,1715105574039,-2045.92,0.0002,2]
[326551832,1715105574050,-733.48,0.0002,2]
[326551833,1715105574063,-44695.36,0.0002,2]
[326551834,1715105574075,-2381.36,0.0002,2]
[326551835,1715105574097,-1025.11,0.0002,2]
[326551836,1715105574108,-500.0,0.0002,2]
[326551837,1715105574118,-500.0,0.0002,2]
[326551838,1715105574130,-500.0,0.0002,2]
[326551839,1715105574141,-500.0,0.0002,2]
[326551840,1715105574153,-1880.09,0.0002,2]
[326551841,1715105574162,-1066.97,0.0002,2]
[326551842,1715105574192,-1387.28,0.0002,2]
[326551843,1715105574202,-575.88,0.0002,2]
[326551844,1715105574223,-500.0,0.0002,2]
[326551845,1715105574235,-2096.8,0.0002,2]
[326551846,1715105574256,-500.0,0.0002,2]
[326551847,1715105574266,-500.0,0.0002,2]
[326551848,1715105574279,-2732.08,0.0002,2]
[326551849,1715105574315,-840.9,0.0002,2]
[326551850,1715105574333,-1050.6,0.0002,2]
[326551851,1715105574353,-835.2,0.0002,2]
[326551852,1715105574364,-3507.75,0.0002,2]
[326551853,1715105574374,-2837.98,0.0002,2]
[326551854,1715105574386,-500.0,0.0002,2]
[326551855,1715105574398,-507.08349066,0.0002,2]
[326551856,1715105574408,-2913.55,0.0002,2]
[326551857,1715105574420,-500.0,0.0002,2]
[326551858,1715105574431,-825.96,0.0002,2]
[326551859,1715105574442,-2404.42,0.0002,2]
[326551860,1715105574458,-1125.59,0.0002,2]
[326551861,1715105574473,-500.0,0.0002,2]
[326551862,1715105574487,-559.94710489,0.0002,2]
[326551863,1715105574512,-2326.09,0.0002,2]
[326551864,1715105574522,-500.0,0.0002,2]
[326551865,1715105574536,-678.75,0.0002,2]
[326551866,1715105574553,-5312.39,0.0002,2]
[326551867,1715105574563,-2929.62,0.0002,2]
[326551868,1715105574576,-500.0,0.0002,2]
[326551869,1715105574620,-2251.89,0.0002,2]
[326551870,1715105574630,-500.0,0.0002,2]
[326551871,1715105574654,-1192.04,0.0002,2]
[326551872,1715105574668,-995.1,0.0002,2]
[326551873,1715105574679,-1422.68,0.0002,2]
[326551874,1715105574697,-500.0,0.0002,2]
[326551875,1715105574708,-7636.26,0.0002,2]
[326551876,1715105574761,-6856.81,0.0002,2]
[326551877,1715105574784,-4930.24,0.0002,2]
[326551878,1715105574798,-1988.76,0.0002,2]
[326551879,1715105574810,-500.0,0.0002,2]
[326551880,1715105574820,-500.0,0.0002,2]
[326551881,1715105574835,-500.0,0.0002,2]
[326551882,1715105574846,-2775.11,0.0002,2]
[326551883,1715105574857,-500.0,0.0002,2]
[326551884,1715105574892,-1155.41,0.0002,2]
[326551885,1715105574906,-5007.09,0.0002,2]
[326551886,1715105574925,-1157.16,0.0002,2]
[326551887,1715105574939,-790.84,0.0002,2]
[326551888,1715105574957,-29416.15,0.0002,2]
[326551889,1715105574986,-428.58192993,0.0002,2]
[326551890,1715105575008,-500.0,0.0002,2]
[326551891,1715105575023,-1981.97,0.0002,2]
[326551892,1715105575035,-500.0,0.0002,2]
[326551893,1715105575059,-500.0,0.0002,2]
[326551894,1715105575074,-500.0,0.0002,2]
[326551895,1715105575088,-794.77,0.0002,2]
[326551896,1715105575115,-500.0,0.0002,2]
[326551897,1715105575125,-6716.37,0.0002,2]
[326551898,1715105575139,-500.0,0.0002,2]
[326551899,1715105575152,-1179.96,0.0002,2]
[326551900,1715105575168,-1794.84,0.0002,2]
[326551901,1715105575205,-500.0,0.0002,2]
[326551902,1715105575223,-1634.78,0.0002,2]
[326551903,1715105575243,-1100.13,0.0002,2]
[326551904,1715105575256,-507.63615064,0.0002,2]
[326551905,1715105575275,-500.0,0.0002,2]
[326551906,1715105575285,-715.85,0.0002,2]
[326551907,1715105575298,-500.0,0.0002,2]
[326551908,1715105575332,-5160.56,0.0002,2]
[326551909,1715105575343,-1024.0,0.0002,2]
[326551910,1715105575384,-562.05,0.0002,2]
[326551911,1715105575401,-4446.43,0.0002,2]
[326551912,1715105575411,-500.0,0.0002,2]
[326551913,1715105575424,-500.0,0.0002,2]
[326551914,1715105575435,-500.0,0.0002,2]
[326551915,1715105575446,-500.0,0.0002,2]
[326551916,1715105575492,-719.72,0.0002,2]
[326551917,1715105575535,-591.63330165,0.0002,2]
[326551918,1715105575546,-1668.41,0.0002,2]
[326551919,1715105575575,-500.0,0.0002,2]
[326551920,1715105575587,-2897.06,0.0002,2]
[326551921,1715105575597,-2273.27,0.0002,2]
[326551922,1715105575613,-2266.91,0.0002,2]
[326551923,1715105575634,-2711.45,0.0002,2]
[326551924,1715105575646,-591.11,0.0002,2]
[326551925,1715105575657,-2878.06,0.0002,2]
[326551926,1715105575676,-500.0,0.0002,2]
[326551927,1715105575686,-2747.7,0.0002,2]
[326551928,1715105575697,-2730.02,0.0002,2]
[326551929,1715105575715,-500.0,0.0002,2]
[326551930,1715105575738,-680.44,0.0002,2]
[326551931,1715105575749,-2436.75,0.0002,2]
[326551932,1715105575780,-2730.02,0.0002,2]
[326551933,1715105575791,-895.93,0.0002,2]
[326551934,1715105575815,-1652.52,0.0002,2]
[326551935,1715105575827,-549.07,0.0002,2]
[326551936,1715105575853,-519.73,0.0002,2]
[326551937,1715105575864,-500.0,0.0002,2]
[326551938,1715105575874,-1304.96,0.0002,2]
[326551939,1715105575886,-1593.18,0.0002,2]
[326551940,1715105575897,-762.1,0.0002,2]
[326551941,1715105575910,-1412.02,0.0002,2]
[326551942,1715105575920,-503.97614439,0.0002,2]
[326551943,1715105575937,-38643.67,0.0002,2]
[326551944,1715105575961,-3669.89,0.0002,2]
[326551945,1715105575972,-500.0,0.0002,2]
[326551946,1715105575983,-9384.72,0.0002,2]
[326551947,1715105575993,-151.0,0.0002,2]
[326551948,1715105576005,-151.0,0.0002,2]
[326551949,1715105576024,-500.0,0.0002,2]
[326551950,1715105576037,-500.0,0.0002,2]
[326551951,1715105576052,-727.14,0.0002,2]
[326551952,1715105576063,-500.0,0.0002,2]
[326551953,1715105576074,-1170.08,0.0002,2]
[326551954,1715105576090,-1941.14,0.0002,2]
[326551955,1715105576102,-541.81,0.0002,2]
[326551956,1715105576120,-618.14,0.0002,2]
[326551957,1715105576131,-3197.79,0.0002,2]
[326551958,1715105576142,-631.46,0.0002,2]
[326551959,1715105576152,-1921.54,0.0002,2]
[326551960,1715105576173,-3099.44,0.0002,2]
[326551961,1715105576220,-4560.48,0.0002,2]
[326551962,1715105576232,-500.0,0.0002,2]
[326551963,1715105576243,-913.619557,0.0002,2]
[326551964,1715105576261,-594.96,0.0002,2]
[326551965,1715105576272,-1063.33,0.0002,2]
[326551966,1715105576284,-1682.37,0.0002,2]
[326551967,1715105576294,-3698.43,0.0002,2]
[326551968,1715105576306,-808.36,0.0002,2]
[326551969,1715105576344,-913.619556,0.0002,2]
[326551970,1715105576356,-500.0,0.0002,2]
[326551971,1715105576475,-500.0,0.0002,2]
[326551972,1715105576486,-2956.08,0.0002,2]
[326551973,1715105576513,-528.47,0.0002,2]
[326551974,1715105576525,-17712.58,0.0002,2]
[326551975,1715105576546,-3212.42,0.0002,2]
[326551976,1715105576557,-1075.62,0.0002,2]
[326551977,1715105576576,-684.43,0.0002,2]
[326551978,1715105576590,-2995.55,0.0002,2]
[326551979,1715105576621,-500.0,0.0002,2]
[326551980,1715105576658,-1716.07,0.0002,2]
[326551981,1715105576669,-4441.97,0.0002,2]
[326551982,1715105576680,-502.62,0.0002,2]
[326551983,1715105576708,-8698.62,0.0002,2]
[326551984,1715105576722,-517.61,0.0002,2]
[326551985,1715105576732,-7988.89,0.0002,2]
[326551986,1715105576742,-1169.68,0.0002,2]
[326551987,1715105576765,-500.0,0.0002,2]
[326551988,1715105576777,-2365.32,0.0002,2]
[326551989,1715105576789,-1802.09,0.0002,2]
[326551990,1715105576815,-2488.08,0.0002,2]
[326551991,1715105576827,-2525.86,0.0002,2]
[326551992,1715105576840,-747.34,0.0002,2]
[326551993,1715105576852,-500.0,0.0002,2]
[326551994,1715105576863,-672.01,0.0002,2]
[326551995,1715105576875,-500.0,0.0002,2]
[326551996,1715105576905,-500.0,0.0002,2]
[326551997,1715105576915,-2196.88,0.0002,2]
[326551998,1715105576950,-1274.76,0.0002,2]
[326551999,1715105576961,-2680.71,0.0002,2]
[326552000,1715105576977,-862.12,0.0002,2]
[326552001,1715105576987,-1924.04,0.0002,2]
[326552002,1715105577009,-3541.95,0.0002,2]
[326552003,1715105577019,-1745.92,0.0002,2]
[326552004,1715105577032,-2146.45,0.0002,2]
[326552005,1715105577043,-3103.92,0.0002,2]
[326552006,1715105577056,-500.0,0.0002,2]
[326552007,1715105577067,-500.0,0.0002,2]
[326552008,1715105577083,-1012.58178063,0.0002,2]
[326552009,1715105577097,-500.0,0.0002,2]
[326552010,1715105577113,-756.1,0.0002,2]
[326552011,1715105577127,-2541.93,0.0002,2]
[326552012,1715105577162,-1873.65,0.0002,2]
[326552013,1715105577173,-1454.37,0.0002,2]
[326552014,1715105577204,-507.12,0.0002,2]
[326552015,1715105577221,-1355.89,0.0002,2]
[326552016,1715105577240,-857.95,0.0002,2]
[326552017,1715105577252,-3339.3,0.0002,2]
[326552018,1715105577265,-5966.98,0.0002,2]
[326552019,1715105577290,-500.0,0.0002,2]
[326552020,1715105577302,-1339.67,0.0002,2]
[326552021,1715105577313,-638.44,0.0002,2]
[326552022,1715105577323,-2977.97,0.0002,2]
[326552023,1715105577347,-2330.41,0.0002,2]
[326552024,1715105577358,-602.67,0.0002,2]
[326552025,1715105577386,-708.04,0.0002,2]
[326552026,1715105577396,-635.24,0.0002,2]
[326552027,1715105577409,-3811.26,0.0002,2]
[326552028,1715105577425,-500.0,0.0002,2]
[326552029,1715105577436,-1963.7,0.0002,2]
[326552030,1715105577448,-2861.46,0.0002,2]
[326552031,1715105577461,-1042.73,0.0002,2]
[326552032,1715105577473,-618.46,0.0002,2]
[326552033,1715105577484,-3883.38,0.0002,2]
[326552034,1715105577511,-1352.62,0.0002,2]
[326552035,1715105577522,-4263.48,0.0002,2]
[326552036,1715105577539,-2547.66,0.0002,2]
[326552037,1715105577556,-2140.87,0.0002,2]
[326552038,1715105577579,-2198.63,0.0002,2]
[326552039,1715105577590,-709.65,0.0002,2]
[326552040,1715105577603,-500.0,0.0002,2]
[326552041,1715105577625,-500.0,0.0002,2]
[326552042,1715105577648,-500.0,0.0002,2]
[326552043,1715105577676,-3075.75,0.0002,2]
[326552044,1715105577693,-5121.23,0.0002,2]
[326552045,1715105577706,-3237.33,0.0002,2]
[326552046,1715105577717,-508.61457509,0.0002,2]
[326552047,1715105577727,-4095.92,0.0002,2]
[326552048,1715105577739,-1411.6,0.0002,2]
[326552049,1715105577751,-1080.84,0.0002,2]
[326552050,1715105577762,-7176.66,0.0002,2]
[326552051,1715105577772,-7598.04,0.0002,2]
[326552052,1715105577784,-823.3,0.0002,2]
[326552053,1715105577797,-1138.76,0.0002,2]
[326552054,1715105577815,-1486.57,0.0002,2]
[326552055,1715105577828,-2761.44,0.0002,2]
[326552056,1715105577844,-2200.2,0.0002,2]
[326552057,1715105577864,-2435.41,0.0002,2]
[326552058,1715105577876,-153.43583716,0.00020184,2]
[326552059,1715105577887,-902.13,0.00020273,2]
[326552060,1715105577923,-500.0,0.00020273,2]
[326552061,1715105577934,-500.0,0.00020273,2]
[326552062,1715105577948,-500.0,0.00020273,2]
[326552063,1715105577960,-964.26,0.00020273,2]
[326552064,1715105577970,-500.0,0.00020273,2]
[326552065,1715105577981,-500.0,0.00020273,2]
[326552066,1715105577991,-712.97,0.00020273,2]
[326552067,1715105578003,-500.0,0.00020273,2]
[326552068,1715105578025,-528.05605768,0.00020273,2]
[326552069,1715105578048,-500.0,0.00020273,2]
[326552070,1715105578058,-500.0,0.00020273,2]
[326552071,1715105578070,-500.0,0.00020273,2]
[326552072,1715105578086,-500.0,0.00020273,2]
[326552073,1715105578098,-759.45,0.00020273,2]
[326552074,1715105578110,-500.0,0.00020273,2]
[326552075,1715105578128,-500.0,0.00020273,2]
[326552076,1715105578139,-696.64,0.00020273,2]
[326552077,1715105578158,-500.0,0.00020273,2]
[326552078,1715105578170,-500.0,0.00020273,2]
[326552079,1715105578181,-749.43,0.00020273,2]
[326552080,1715105578192,-500.0,0.00020273,2]
[326552081,1715105578212,-992.5,0.00020273,2]
[326552082,1715105578236,-500.0,0.00020273,2]
[326552083,1715105578254,-500.0,0.00020273,2]
[326552084,1715105578267,-500.0,0.00020273,2]
[326552085,1715105578296,-500.0,0.00020273,2]
[326552086,1715105578308,-500.0,0.00020273,2]
[326552087,1715105578322,-500.0,0.00020273,2]
[326552088,1715105578334,-500.0,0.00020273,2]
[326552089,1715105578357,-1147.18,0.00020273,2]